[Event "Titled Tuesday Blitz July 18 Late 2023"]
[White "Jimenez Almeida, Luis David"]
[Black "Rosenberg, Evan S"]
[WhiteFideId "22242244"]
[BlackFideId "2019299"]
[WhiteElo "2568"]
[BlackElo "2415"]
[Result "1-0"]
[Round "6"]
[TimeControl "180+2"]
[Date "2023.07.18"]
[WhiteClock "0:00:03"]
[BlackClock "0:00:00"]
[Board "85"]

1. e4 {[%clk 0:03:00]}  c5 {[%clk 0:02:58]} 2. Nc3 {[%clk 0:03:00]}  g6 {[%clk 0:02:58]} 3. g3 {[%clk 0:03:00]}  Bg7 {[%clk 0:02:58]} 4. Bg2 {[%clk 0:03:00]}  Nc6 {[%clk 0:02:58]} 5. d3 {[%clk 0:03:01]}  d6 {[%clk 0:02:58]} 6. Be3 {[%clk 0:03:01]}  Nf6 {[%clk 0:02:58]} 7. h3 {[%clk 0:03:01]}  O-O {[%clk 0:02:58]} 8. Qd2 {[%clk 0:03:01]}  Nd4 {[%clk 0:02:57]} 9. Nge2 {[%clk 0:03:01]}  e5 {[%clk 0:02:56]} 10. a4 {[%clk 0:02:50]}  Rb8 {[%clk 0:02:40]} 11. Nc1 {[%clk 0:02:50]}  b6 {[%clk 0:02:36]} 12. Nd1 {[%clk 0:02:48]}  a6 {[%clk 0:02:35]} 13. c3 {[%clk 0:02:48]}  Ne6 {[%clk 0:02:34]} 14. Ne2 {[%clk 0:02:47]}  d5 {[%clk 0:02:31]} 15. Bh6 {[%clk 0:02:44]}  dxe4 {[%clk 0:02:29]} 16. Bxg7 {[%clk 0:02:43]}  Kxg7 {[%clk 0:02:27]} 17. dxe4 {[%clk 0:02:44]}  Qxd2+ {[%clk 0:02:27]} 18. Kxd2 {[%clk 0:02:44]}  Bb7 {[%clk 0:02:25]} 19. Ke3 {[%clk 0:02:41]}  c4 {[%clk 0:02:24]} 20. f4 {[%clk 0:02:37]}  Nc5 {[%clk 0:02:20]} 21. Nf2 {[%clk 0:02:36]}  Rfe8 {[%clk 0:02:18]} 22. fxe5 {[%clk 0:02:05]}  Rxe5 {[%clk 0:02:15]} 23. Kd4 {[%clk 0:02:04]}  Rbe8 {[%clk 0:02:12]} 24. Kxc4 {[%clk 0:02:03]}  Nfxe4 {[%clk 0:02:10]} 25. Nxe4 {[%clk 0:01:49]}  Nxe4 {[%clk 0:01:51]} 26. Kb4 {[%clk 0:01:16]}  Nc5 {[%clk 0:01:34]} 27. Bxb7 {[%clk 0:01:15]}  Rxe2 {[%clk 0:01:35]} 28. Bd5 {[%clk 0:01:02]}  Rxb2+ {[%clk 0:01:34]} 29. Ka3 {[%clk 0:01:00]}  Ree2 {[%clk 0:01:30]} 30. Rhf1 {[%clk 0:00:59]}  f5 {[%clk 0:01:28]} 31. Rae1 {[%clk 0:00:57]}  a5 {[%clk 0:01:27]} 32. g4 {[%clk 0:00:49]}  Rbd2 {[%clk 0:01:03]} 33. Rxe2 {[%clk 0:00:48]}  Rxe2 {[%clk 0:01:03]} 34. gxf5 {[%clk 0:00:48]}  gxf5 {[%clk 0:01:03]} 35. Rxf5 {[%clk 0:00:47]}  Re3 {[%clk 0:01:02]} 36. Rf3 {[%clk 0:00:18]}  Rxf3 {[%clk 0:00:55]} 37. Bxf3 {[%clk 0:00:19]}  Kf6 {[%clk 0:00:55]} 38. h4 {[%clk 0:00:19]}  h6 {[%clk 0:00:51]} 39. h5 {[%clk 0:00:18]}  Ke5 {[%clk 0:00:51]} 40. Bd1 {[%clk 0:00:18]}  Kd5 {[%clk 0:00:49]} 41. Kb2 {[%clk 0:00:17]}  Nd3+ {[%clk 0:00:40]} 42. Kc2 {[%clk 0:00:16]}  Nf4 {[%clk 0:00:41]} 43. Kd2 {[%clk 0:00:15]}  Kc4 {[%clk 0:00:39]} 44. Kc2 {[%clk 0:00:12]}  Nd5 {[%clk 0:00:32]} 45. Be2+ {[%clk 0:00:12]}  Kc5 {[%clk 0:00:33]} 46. Kb3 {[%clk 0:00:11]}  Nf4 {[%clk 0:00:30]} 47. Bf3 {[%clk 0:00:11]}  Nd3 {[%clk 0:00:28]} 48. Bg4 {[%clk 0:00:11]}  Ne5 {[%clk 0:00:24]} 49. Bf5 {[%clk 0:00:10]}  Nc4 {[%clk 0:00:21]} 50. Bg6 {[%clk 0:00:08]}  Nd2+ {[%clk 0:00:19]} 51. Kc2 {[%clk 0:00:09]}  Nf3 {[%clk 0:00:20]} 52. Be8 {[%clk 0:00:07]}  Ne5 {[%clk 0:00:17]} 53. Kb3 {[%clk 0:00:04]}  Ng4 {[%clk 0:00:14]} 54. Kc2 {[%clk 0:00:04]}  Nf6 {[%clk 0:00:15]} 55. Bg6 {[%clk 0:00:04]}  Nd5 {[%clk 0:00:15]} 56. Kb3 {[%clk 0:00:04]}  Nf4 {[%clk 0:00:12]} 57. Be8 {[%clk 0:00:04]}  Ne2 {[%clk 0:00:08]} 58. Kc2 {[%clk 0:00:04]}  Nf4 {[%clk 0:00:07]} 59. Kd2 {[%clk 0:00:04]}  Nd5 {[%clk 0:00:07]} 60. Kd3 {[%clk 0:00:02]}  Nc7 {[%clk 0:00:07]} 61. Bg6 {[%clk 0:00:02]}  b5 {[%clk 0:00:06]} 62. axb5 {[%clk 0:00:02]}  Nxb5 {[%clk 0:00:06]} 63. c4 {[%clk 0:00:02]}  Nd6 {[%clk 0:00:06]} 64. Kc3 {[%clk 0:00:02]}  Nxc4 {[%clk 0:00:06]} 65. Bf7 {[%clk 0:00:03]}  Ne5 {[%clk 0:00:06]} 66. Bg8 {[%clk 0:00:03]}  Nc6 {[%clk 0:00:02]} 67. Kd2 {[%clk 0:00:03]}  Kb4 {[%clk 0:00:02]} 68. Ke3 {[%clk 0:00:03]}  a4 {[%clk 0:00:00]} 69. Kf4 {[%clk 0:00:03]} 1-0


[Site "https://www.chess.com"]

[Event "Titled Tuesday Blitz July 18 Late 2023"]
[White "Zenin, Dmitry"]
[Black "Vovk, Orest"]
[WhiteFideId "4127897"]
[BlackFideId "14113490"]
[WhiteElo "2418"]
[BlackElo "2562"]
[Result "0-1"]
[Round "6"]
[TimeControl "180+2"]
[Date "2023.07.18"]
[WhiteClock "0:00:24"]
[BlackClock "0:00:35"]
[Board "86"]

1. d4 {[%clk 0:03:00]}  h6 {[%clk 0:02:59]} 2. c4 {[%clk 0:03:00]}  g5 {[%clk 0:02:58]} 3. h4 {[%clk 0:02:56]}  g4 {[%clk 0:02:58]} 4. h5 {[%clk 0:02:56]}  Bg7 {[%clk 0:02:57]} 5. e4 {[%clk 0:02:51]}  c5 {[%clk 0:02:57]} 6. dxc5 {[%clk 0:02:48]}  Qa5+ {[%clk 0:02:54]} 7. Bd2 {[%clk 0:02:46]}  Qxc5 {[%clk 0:02:54]} 8. Bc3 {[%clk 0:02:46]}  Bxc3+ {[%clk 0:02:53]} 9. Nxc3 {[%clk 0:02:45]}  d6 {[%clk 0:02:53]} 10. Nge2 {[%clk 0:02:40]}  Nf6 {[%clk 0:02:47]} 11. Ng3 {[%clk 0:02:38]}  Nc6 {[%clk 0:02:47]} 12. Qd2 {[%clk 0:02:38]}  Qd4 {[%clk 0:02:44]} 13. O-O-O {[%clk 0:02:35]}  Qxd2+ {[%clk 0:02:44]} 14. Rxd2 {[%clk 0:02:35]}  Ne5 {[%clk 0:02:40]} 15. Be2 {[%clk 0:02:24]}  Be6 {[%clk 0:02:40]} 16. b3 {[%clk 0:02:24]}  a6 {[%clk 0:02:40]} 17. Kb2 {[%clk 0:02:23]}  O-O-O {[%clk 0:02:31]} 18. Rc1 {[%clk 0:02:20]}  Kb8 {[%clk 0:02:30]} 19. Na4 {[%clk 0:02:17]}  Ka7 {[%clk 0:02:27]} 20. Rcd1 {[%clk 0:02:09]}  Nc6 {[%clk 0:02:18]} 21. Nc3 {[%clk 0:02:04]}  b6 {[%clk 0:02:12]} 22. Nd5 {[%clk 0:02:02]}  Bxd5 {[%clk 0:02:12]} 23. exd5 {[%clk 0:02:02]}  Ne5 {[%clk 0:02:11]} 24. Re1 {[%clk 0:01:55]}  Rhg8 {[%clk 0:02:06]} 25. Bd1 {[%clk 0:01:53]}  Rg5 {[%clk 0:02:05]} 26. Rh1 {[%clk 0:01:53]}  b5 {[%clk 0:01:59]} 27. cxb5 {[%clk 0:01:52]}  axb5 {[%clk 0:02:00]} 28. Bc2 {[%clk 0:01:44]}  Rc8 {[%clk 0:01:56]} 29. Rd4 {[%clk 0:01:43]}  Kb6 {[%clk 0:01:52]} 30. a3 {[%clk 0:01:27]}  Rc5 {[%clk 0:01:52]} 31. Ne4 {[%clk 0:01:23]}  Nxe4 {[%clk 0:01:49]} 32. Bxe4 {[%clk 0:01:23]}  f5 {[%clk 0:01:47]} 33. Bc2 {[%clk 0:01:20]}  Nd7 {[%clk 0:01:26]} 34. b4 {[%clk 0:01:18]}  Rc4 {[%clk 0:01:25]} 35. Rxc4 {[%clk 0:01:14]}  bxc4 {[%clk 0:01:26]} 36. Kc3 {[%clk 0:01:12]}  Ne5 {[%clk 0:01:26]} 37. g3 {[%clk 0:01:07]}  Rg8 {[%clk 0:01:17]} 38. a4 {[%clk 0:01:02]}  Rf8 {[%clk 0:01:17]} 39. a5+ {[%clk 0:00:55]}  Kb5 {[%clk 0:01:17]} 40. Ra1 {[%clk 0:00:55]}  f4 {[%clk 0:01:18]} 41. Ba4+ {[%clk 0:00:54]}  Ka6 {[%clk 0:01:18]} 42. Bd1 {[%clk 0:00:50]}  fxg3 {[%clk 0:01:13]} 43. fxg3 {[%clk 0:00:50]}  Rf2 {[%clk 0:01:13]} 44. Rb1 {[%clk 0:00:45]}  Kb5 {[%clk 0:01:11]} 45. Ra1 {[%clk 0:00:38]}  Nd3 {[%clk 0:00:49]} 46. a6 {[%clk 0:00:35]}  Nxb4 {[%clk 0:00:48]} 47. a7 {[%clk 0:00:32]}  Nxd5+ {[%clk 0:00:47]} 48. Kd4 {[%clk 0:00:32]}  Nc7 {[%clk 0:00:36]} 49. a8=Q {[%clk 0:00:30]}  Nxa8 {[%clk 0:00:35]} 50. Rxa8 {[%clk 0:00:24]}  Rd2+ {[%clk 0:00:35]} 0-1


[Site "https://www.chess.com"]

[Event "Titled Tuesday Blitz July 18 Late 2023"]
[White "Hajiyev, Kanan"]
[Black "Bueno, Alfeu Junior Varela"]
[WhiteFideId "13404148"]
[BlackFideId "2108879"]
[WhiteElo "2549"]
[BlackElo "2409"]
[Result "1-0"]
[Round "6"]
[TimeControl "180+2"]
[Date "2023.07.18"]
[WhiteClock "0:00:14"]
[BlackClock "0:00:00"]
[Board "87"]

1. d4 {[%clk 0:03:00]}  e6 {[%clk 0:02:59]} 2. Nf3 {[%clk 0:03:01]}  f5 {[%clk 0:02:58]} 3. c4 {[%clk 0:03:02]}  b6 {[%clk 0:02:58]} 4. g3 {[%clk 0:03:03]}  Bb7 {[%clk 0:02:58]} 5. Bg2 {[%clk 0:03:04]}  Nf6 {[%clk 0:02:58]} 6. Nh4 {[%clk 0:03:04]}  Bxg2 {[%clk 0:02:57]} 7. Nxg2 {[%clk 0:03:05]}  Bb4+ {[%clk 0:02:51]} 8. Bd2 {[%clk 0:03:05]}  Qe7 {[%clk 0:02:49]} 9. O-O {[%clk 0:03:04]}  O-O {[%clk 0:02:49]} 10. Bg5 {[%clk 0:02:57]}  Qf7 {[%clk 0:02:44]} 11. Bxf6 {[%clk 0:02:57]}  Qxf6 {[%clk 0:02:43]} 12. a3 {[%clk 0:02:58]}  Be7 {[%clk 0:02:35]} 13. Nc3 {[%clk 0:02:58]}  d6 {[%clk 0:02:34]} 14. e4 {[%clk 0:02:52]}  Nd7 {[%clk 0:02:31]} 15. exf5 {[%clk 0:02:49]}  Qxf5 {[%clk 0:02:26]} 16. Qe2 {[%clk 0:02:47]}  Bf6 {[%clk 0:02:22]} 17. Rad1 {[%clk 0:02:46]}  Rae8 {[%clk 0:02:19]} 18. f4 {[%clk 0:02:40]}  c5 {[%clk 0:01:54]} 19. Nb5 {[%clk 0:02:26]}  Bxd4+ {[%clk 0:01:45]} 20. Kh1 {[%clk 0:02:03]}  Qh3 {[%clk 0:01:03]} 21. Nxd6 {[%clk 0:01:59]}  Re7 {[%clk 0:01:04]} 22. Nb5 {[%clk 0:01:54]}  Nf6 {[%clk 0:01:03]} 23. Nxd4 {[%clk 0:01:34]}  cxd4 {[%clk 0:01:04]} 24. Rxd4 {[%clk 0:01:35]}  e5 {[%clk 0:01:03]} 25. fxe5 {[%clk 0:01:24]}  Rfe8 {[%clk 0:00:59]} 26. Rd5 {[%clk 0:01:09]}  Nxd5 {[%clk 0:00:48]} 27. cxd5 {[%clk 0:01:03]}  Rxe5 {[%clk 0:00:44]} 28. Qf3 {[%clk 0:01:03]}  Qd7 {[%clk 0:00:31]} 29. Nf4 {[%clk 0:01:02]}  g5 {[%clk 0:00:23]} 30. Nh5 {[%clk 0:00:50]}  Qe7 {[%clk 0:00:13]} 31. Nf6+ {[%clk 0:00:45]}  Kg7 {[%clk 0:00:10]} 32. Nxe8+ {[%clk 0:00:43]}  Qxe8 {[%clk 0:00:11]} 33. Qf6+ {[%clk 0:00:42]}  Kg8 {[%clk 0:00:11]} 34. d6 {[%clk 0:00:39]}  Qc6+ {[%clk 0:00:12]} 35. Kg1 {[%clk 0:00:33]}  Qc5+ {[%clk 0:00:12]} 36. Kg2 {[%clk 0:00:25]}  Qd5+ {[%clk 0:00:12]} 37. Kh3 {[%clk 0:00:22]}  Qe6+ {[%clk 0:00:12]} 38. Qxe6+ {[%clk 0:00:18]}  Rxe6 {[%clk 0:00:13]} 39. Rd1 {[%clk 0:00:17]}  Re8 {[%clk 0:00:14]} 40. d7 {[%clk 0:00:17]}  Rd8 {[%clk 0:00:14]} 41. Kg4 {[%clk 0:00:18]}  h6 {[%clk 0:00:11]} 42. Kh5 {[%clk 0:00:18]}  Kg7 {[%clk 0:00:12]} 43. b4 {[%clk 0:00:18]}  b5 {[%clk 0:00:11]} 44. g4 {[%clk 0:00:16]}  Kh7 {[%clk 0:00:02]} 45. Rd6 {[%clk 0:00:14]}  Kg7 {[%clk 0:00:02]} 46. Rg6+ {[%clk 0:00:14]}  Kf7 {[%clk 0:00:00]} 47. Rxh6 {[%clk 0:00:14]} 1-0


[Site "https://www.chess.com"]

[Event "Titled Tuesday Blitz July 18 Late 2023"]
[White "Lopez Idarraga, Daniel Eduardo"]
[Black "D`Arruda, Ricardo D."]
[WhiteFideId "4405501"]
[BlackFideId "100692"]
[WhiteElo "2327"]
[BlackElo "2517"]
[Result "0-1"]
[Round "6"]
[TimeControl "180+2"]
[Date "2023.07.18"]
[WhiteClock "0:00:32"]
[BlackClock "0:01:39"]
[Board "90"]

1. d4 {[%clk 0:03:00]}  Nf6 {[%clk 0:02:53]} 2. Bf4 {[%clk 0:03:01]}  d6 {[%clk 0:02:52]} 3. e3 {[%clk 0:03:00]}  g6 {[%clk 0:02:52]} 4. Be2 {[%clk 0:03:00]}  Bg7 {[%clk 0:02:53]} 5. h3 {[%clk 0:03:01]}  O-O {[%clk 0:02:52]} 6. Nf3 {[%clk 0:03:01]}  c5 {[%clk 0:02:53]} 7. c3 {[%clk 0:03:01]}  b6 {[%clk 0:02:52]} 8. O-O {[%clk 0:03:00]}  Bb7 {[%clk 0:02:52]} 9. Bh2 {[%clk 0:03:01]}  Nbd7 {[%clk 0:02:50]} 10. Nbd2 {[%clk 0:03:01]}  Qc7 {[%clk 0:02:50]} 11. a4 {[%clk 0:03:01]}  a6 {[%clk 0:02:49]} 12. Qb3 {[%clk 0:03:01]}  Rab8 {[%clk 0:02:48]} 13. Qa3 {[%clk 0:03:01]}  Rfc8 {[%clk 0:02:46]} 14. b4 {[%clk 0:03:00]}  cxb4 {[%clk 0:02:46]} 15. cxb4 {[%clk 0:03:01]}  Qc3 {[%clk 0:02:45]} 16. Qxc3 {[%clk 0:02:11]}  Rxc3 {[%clk 0:02:46]} 17. Nc4 {[%clk 0:02:11]}  Rc8 {[%clk 0:02:40]} 18. Na3 {[%clk 0:02:00]}  Rb3 {[%clk 0:02:27]} 19. Rfb1 {[%clk 0:01:59]}  Rcc3 {[%clk 0:02:21]} 20. Nc4 {[%clk 0:01:55]}  Nd5 {[%clk 0:02:15]} 21. b5 {[%clk 0:01:36]}  a5 {[%clk 0:02:13]} 22. Nfd2 {[%clk 0:01:35]}  Rxb1+ {[%clk 0:02:12]} 23. Rxb1 {[%clk 0:01:36]}  Nb4 {[%clk 0:02:07]} 24. Bg4 {[%clk 0:01:25]}  f5 {[%clk 0:02:06]} 25. Bf3 {[%clk 0:01:24]}  Bxf3 {[%clk 0:02:04]} 26. gxf3 {[%clk 0:01:25]}  Kf7 {[%clk 0:02:00]} 27. h4 {[%clk 0:01:22]}  Ke6 {[%clk 0:01:58]} 28. Rb3 {[%clk 0:01:07]}  Rc2 {[%clk 0:01:56]} 29. Rb2 {[%clk 0:00:47]}  Rc1+ {[%clk 0:01:54]} 30. Kg2 {[%clk 0:00:48]}  Kd5 {[%clk 0:01:53]} 31. e4+ {[%clk 0:00:39]}  Kxd4 {[%clk 0:01:40]} 32. Nb3+ {[%clk 0:00:38]}  Kxc4 {[%clk 0:01:40]} 33. Nxc1 {[%clk 0:00:32]}  Bxb2 {[%clk 0:01:39]} 0-1


[Site "https://www.chess.com"]

[Event "Titled Tuesday Blitz July 18 Late 2023"]
[White "Leenhouts, Koen"]
[Black "Cooper, Aaron"]
[WhiteFideId "1008439"]
[BlackFideId "2634945"]
[WhiteElo "2513"]
[BlackElo "2295"]
[Result "1-0"]
[Round "6"]
[TimeControl "180+2"]
[Date "2023.07.18"]
[WhiteClock "0:00:44"]
[BlackClock "0:00:00"]
[Board "91"]

1. e4 {[%clk 0:03:00]}  d6 {[%clk 0:02:59]} 2. d4 {[%clk 0:03:00]}  Nf6 {[%clk 0:02:58]} 3. f3 {[%clk 0:02:59]}  g6 {[%clk 0:02:57]} 4. c4 {[%clk 0:02:59]}  Bg7 {[%clk 0:02:56]} 5. Nc3 {[%clk 0:02:59]}  Nbd7 {[%clk 0:02:50]} 6. Nh3 {[%clk 0:02:58]}  e5 {[%clk 0:02:50]} 7. d5 {[%clk 0:02:57]}  O-O {[%clk 0:02:49]} 8. Nf2 {[%clk 0:02:56]}  Ne8 {[%clk 0:02:41]} 9. g4 {[%clk 0:02:54]}  a5 {[%clk 0:02:37]} 10. Be3 {[%clk 0:02:52]}  Nc5 {[%clk 0:02:35]} 11. Qd2 {[%clk 0:02:44]}  f5 {[%clk 0:02:23]} 12. gxf5 {[%clk 0:02:45]}  gxf5 {[%clk 0:02:23]} 13. Rg1 {[%clk 0:02:35]}  Kh8 {[%clk 0:02:19]} 14. O-O-O {[%clk 0:02:32]}  a4 {[%clk 0:01:53]} 15. Kb1 {[%clk 0:02:28]}  Nf6 {[%clk 0:01:42]} 16. Bh6 {[%clk 0:02:08]}  Bxh6 {[%clk 0:01:08]} 17. Qxh6 {[%clk 0:02:08]}  Rf7 {[%clk 0:01:08]} 18. Bh3 {[%clk 0:01:56]}  fxe4 {[%clk 0:00:58]} 19. Bxc8 {[%clk 0:01:57]}  Qxc8 {[%clk 0:00:58]} 20. fxe4 {[%clk 0:01:42]}  Qf8 {[%clk 0:00:56]} 21. Qh4 {[%clk 0:01:29]}  Ra6 {[%clk 0:00:40]} 22. Nh3 {[%clk 0:01:25]}  Rg7 {[%clk 0:00:20]} 23. Rxg7 {[%clk 0:01:23]}  Qxg7 {[%clk 0:00:19]} 24. Rg1 {[%clk 0:01:23]}  Qe7 {[%clk 0:00:13]} 25. Rf1 {[%clk 0:01:19]}  Ncd7 {[%clk 0:00:09]} 26. Ng5 {[%clk 0:01:14]}  Ra8 {[%clk 0:00:09]} 27. Nb5 {[%clk 0:01:11]}  c6 {[%clk 0:00:07]} 28. Nxd6 {[%clk 0:01:10]}  Rf8 {[%clk 0:00:03]} 29. Nf5 {[%clk 0:00:53]}  Qe8 {[%clk 0:00:01]} 30. Qh6 {[%clk 0:00:47]}  Qg6 {[%clk 0:00:01]} 31. Qxg6 {[%clk 0:00:43]}  hxg6 {[%clk 0:00:01]} 32. Ne7 {[%clk 0:00:44]}  Kg7 {[%clk 0:00:00]} 33. Ne6+ {[%clk 0:00:44]} 1-0


[Site "https://www.chess.com"]

[Event "Titled Tuesday Blitz July 18 Late 2023"]
[White "Djordjevic, Dejan N"]
[Black "Kisic, Bozidar"]
[WhiteFideId "913316"]
[BlackFideId "16500350"]
[WhiteElo "2091"]
[BlackElo "2507"]
[Result "1-0"]
[Round "6"]
[TimeControl "180+2"]
[Date "2023.07.18"]
[WhiteClock "0:00:28"]
[BlackClock "0:00:02"]
[Board "92"]

1. e4 {[%clk 0:03:00]}  g6 {[%clk 0:02:58]} 2. d4 {[%clk 0:03:00]}  Bg7 {[%clk 0:02:59]} 3. g3 {[%clk 0:02:59]}  d6 {[%clk 0:02:59]} 4. Bg2 {[%clk 0:03:00]}  Nc6 {[%clk 0:02:59]} 5. Ne2 {[%clk 0:03:00]}  e5 {[%clk 0:03:00]} 6. Be3 {[%clk 0:02:59]}  Nge7 {[%clk 0:02:55]} 7. h3 {[%clk 0:02:57]}  O-O {[%clk 0:02:55]} 8. O-O {[%clk 0:02:56]}  f5 {[%clk 0:02:55]} 9. d5 {[%clk 0:02:41]}  Nb8 {[%clk 0:02:49]} 10. f4 {[%clk 0:02:40]}  fxe4 {[%clk 0:02:50]} 11. Nbc3 {[%clk 0:02:33]}  Nf5 {[%clk 0:02:48]} 12. Bc1 {[%clk 0:02:32]}  e3 {[%clk 0:02:39]} 13. g4 {[%clk 0:02:28]}  Nh4 {[%clk 0:02:40]} 14. Bxe3 {[%clk 0:02:26]}  Nxg2 {[%clk 0:02:40]} 15. Kxg2 {[%clk 0:02:27]}  Nd7 {[%clk 0:02:34]} 16. Ng3 {[%clk 0:02:18]}  exf4 {[%clk 0:02:32]} 17. Bxf4 {[%clk 0:02:17]}  Nc5 {[%clk 0:02:29]} 18. Qd2 {[%clk 0:02:12]}  Bd7 {[%clk 0:02:00]} 19. Rae1 {[%clk 0:02:11]}  Rf7 {[%clk 0:01:47]} 20. b4 {[%clk 0:02:02]}  Na4 {[%clk 0:01:45]} 21. Nce4 {[%clk 0:02:00]}  Bb5 {[%clk 0:01:41]} 22. Rf2 {[%clk 0:01:57]}  Qd7 {[%clk 0:01:35]} 23. Ng5 {[%clk 0:01:52]}  Bc3 {[%clk 0:01:34]} 24. Qd1 {[%clk 0:01:46]}  Bxe1 {[%clk 0:01:33]} 25. Qxe1 {[%clk 0:01:46]}  Re8 {[%clk 0:01:27]} 26. Qc1 {[%clk 0:01:40]}  Rfe7 {[%clk 0:01:25]} 27. c4 {[%clk 0:01:39]}  Re1 {[%clk 0:01:24]} 28. Qc2 {[%clk 0:01:39]}  Nb6 {[%clk 0:01:05]} 29. cxb5 {[%clk 0:01:26]}  Nxd5 {[%clk 0:01:04]} 30. Bd2 {[%clk 0:01:22]}  R1e3 {[%clk 0:00:32]} 31. a4 {[%clk 0:01:15]}  a6 {[%clk 0:00:28]} 32. Qc4 {[%clk 0:01:14]}  c6 {[%clk 0:00:26]} 33. Bxe3 {[%clk 0:01:12]}  Rxe3 {[%clk 0:00:26]} 34. bxc6 {[%clk 0:01:09]}  bxc6 {[%clk 0:00:26]} 35. Qxa6 {[%clk 0:01:01]}  Qe7 {[%clk 0:00:22]} 36. Qc8+ {[%clk 0:00:57]}  Qe8 {[%clk 0:00:20]} 37. Qxe8+ {[%clk 0:00:47]}  Rxe8 {[%clk 0:00:18]} 38. b5 {[%clk 0:00:44]}  c5 {[%clk 0:00:15]} 39. N5e4 {[%clk 0:00:41]}  Ra8 {[%clk 0:00:10]} 40. Ra2 {[%clk 0:00:34]}  Nb4 {[%clk 0:00:09]} 41. Ra3 {[%clk 0:00:32]}  c4 {[%clk 0:00:06]} 42. Nxd6 {[%clk 0:00:32]}  Nc2 {[%clk 0:00:04]} 43. Rc3 {[%clk 0:00:31]}  Ne1+ {[%clk 0:00:04]} 44. Kf1 {[%clk 0:00:30]}  Nd3 {[%clk 0:00:03]} 45. Rxc4 {[%clk 0:00:30]}  Rf8+ {[%clk 0:00:02]} 46. Ke2 {[%clk 0:00:30]}  Nf4+ {[%clk 0:00:03]} 47. Kd2 {[%clk 0:00:29]}  Nd5 {[%clk 0:00:02]} 48. Nge4 {[%clk 0:00:28]}  Rf3 {[%clk 0:00:02]} 1-0


[Site "https://www.chess.com"]

[Event "Titled Tuesday Blitz July 18 Late 2023"]
[White "Stachanczyk, Jacek"]
[Black "Belov, Alexei"]
[WhiteFideId "1116657"]
[BlackFideId "4128206"]
[WhiteElo "2419"]
[BlackElo "2577"]
[Result "0-1"]
[Round "6"]
[TimeControl "180+2"]
[Date "2023.07.18"]
[WhiteClock "0:00:00"]
[BlackClock "0:01:22"]
[Board "96"]

1. e4 {[%clk 0:02:55]}  e6 {[%clk 0:03:00]} 2. d4 {[%clk 0:02:55]}  d5 {[%clk 0:03:00]} 3. Nc3 {[%clk 0:02:54]}  Nf6 {[%clk 0:03:00]} 4. e5 {[%clk 0:02:52]}  Ne4 {[%clk 0:03:00]} 5. Nxe4 {[%clk 0:02:51]}  dxe4 {[%clk 0:03:01]} 6. Bc4 {[%clk 0:02:46]}  a6 {[%clk 0:03:01]} 7. Ne2 {[%clk 0:02:32]}  b5 {[%clk 0:03:01]} 8. Bb3 {[%clk 0:02:33]}  Bb7 {[%clk 0:03:01]} 9. O-O {[%clk 0:02:26]}  c5 {[%clk 0:03:01]} 10. dxc5 {[%clk 0:02:21]}  Qc7 {[%clk 0:02:57]} 11. Be3 {[%clk 0:01:53]}  Nd7 {[%clk 0:02:56]} 12. Ng3 {[%clk 0:01:34]}  Qxe5 {[%clk 0:02:44]} 13. Bd4 {[%clk 0:01:25]}  Qc7 {[%clk 0:02:43]} 14. Qe2 {[%clk 0:01:19]}  Nxc5 {[%clk 0:02:41]} 15. a4 {[%clk 0:01:06]}  bxa4 {[%clk 0:02:23]} 16. Bxc5 {[%clk 0:01:00]}  axb3 {[%clk 0:02:18]} 17. Bxf8 {[%clk 0:00:56]}  Kxf8 {[%clk 0:02:17]} 18. cxb3 {[%clk 0:00:49]}  f5 {[%clk 0:02:17]} 19. Rfc1 {[%clk 0:00:18]}  Qb6 {[%clk 0:02:15]} 20. Qh5 {[%clk 0:00:14]}  Rd8 {[%clk 0:01:58]} 21. Ne2 {[%clk 0:00:10]}  g6 {[%clk 0:01:45]} 22. Qh6+ {[%clk 0:00:09]}  Kf7 {[%clk 0:01:46]} 23. Rc4 {[%clk 0:00:02]}  Rd7 {[%clk 0:01:41]} 24. Nf4 {[%clk 0:00:02]}  e3 {[%clk 0:01:31]} 25. Rf1 {[%clk 0:00:01]}  exf2+ {[%clk 0:01:30]} 26. Kh1 {[%clk 0:00:01]}  Qe3 {[%clk 0:01:22]} 27. Nh5 {[%clk 0:00:00]}  Qxh6 {[%clk 0:01:22]} 0-1


[Site "https://www.chess.com"]

[Event "Titled Tuesday Blitz July 18 Late 2023"]
[White "cedchass2006"]
[Black "Arencibia Monduy, Antonio"]
[BlackFideId "3507939"]
[WhiteElo "2402"]
[BlackElo "2531"]
[Result "1-0"]
[Round "6"]
[TimeControl "180+2"]
[Date "2023.07.18"]
[WhiteClock "0:00:08"]
[BlackClock "0:00:02"]
[Board "101"]

1. e4 {[%clk 0:03:00]}  c5 {[%clk 0:02:59]} 2. Nf3 {[%clk 0:02:45]}  e6 {[%clk 0:02:59]} 3. g3 {[%clk 0:02:45]}  Nc6 {[%clk 0:02:59]} 4. Bg2 {[%clk 0:02:45]}  Qc7 {[%clk 0:02:55]} 5. O-O {[%clk 0:02:45]}  d6 {[%clk 0:02:55]} 6. c3 {[%clk 0:02:45]}  Nf6 {[%clk 0:02:55]} 7. Qe2 {[%clk 0:02:44]}  e5 {[%clk 0:02:55]} 8. Rd1 {[%clk 0:02:41]}  Bg4 {[%clk 0:02:54]} 9. h3 {[%clk 0:02:42]}  Bh5 {[%clk 0:02:54]} 10. g4 {[%clk 0:02:42]}  Bg6 {[%clk 0:02:55]} 11. d4 {[%clk 0:02:43]}  Be7 {[%clk 0:02:53]} 12. d5 {[%clk 0:02:40]}  Nb8 {[%clk 0:02:52]} 13. Nbd2 {[%clk 0:02:35]}  Nbd7 {[%clk 0:02:52]} 14. Nh4 {[%clk 0:02:27]}  a6 {[%clk 0:02:39]} 15. a4 {[%clk 0:02:22]}  Rb8 {[%clk 0:02:34]} 16. a5 {[%clk 0:02:16]}  Rc8 {[%clk 0:02:24]} 17. Nc4 {[%clk 0:02:10]}  O-O {[%clk 0:02:17]} 18. Bg5 {[%clk 0:02:03]}  Rfe8 {[%clk 0:02:11]} 19. Nf5 {[%clk 0:01:41]}  Bxf5 {[%clk 0:02:09]} 20. gxf5 {[%clk 0:01:32]}  Rb8 {[%clk 0:01:55]} 21. Kh1 {[%clk 0:01:31]}  Nf8 {[%clk 0:01:41]} 22. Rg1 {[%clk 0:01:28]}  Nxd5 {[%clk 0:01:36]} 23. Bxe7 {[%clk 0:01:10]}  Nxe7 {[%clk 0:01:35]} 24. f6 {[%clk 0:01:09]}  gxf6 {[%clk 0:01:23]} 25. Qg4+ {[%clk 0:00:42]}  Neg6 {[%clk 0:01:18]} 26. h4 {[%clk 0:00:40]}  Kh8 {[%clk 0:00:40]} 27. Bh3 {[%clk 0:00:35]}  Ne6 {[%clk 0:00:38]} 28. Ne3 {[%clk 0:00:27]}  Rg8 {[%clk 0:00:30]} 29. Nd5 {[%clk 0:00:26]}  Qd8 {[%clk 0:00:27]} 30. Qf5 {[%clk 0:00:12]}  Nxh4 {[%clk 0:00:19]} 31. Qh5 {[%clk 0:00:08]}  Ng6 {[%clk 0:00:15]} 32. Bf5 {[%clk 0:00:08]}  Ng7 {[%clk 0:00:14]} 33. Qh6 {[%clk 0:00:07]}  Nxf5 {[%clk 0:00:07]} 34. exf5 {[%clk 0:00:08]}  Nf4 {[%clk 0:00:05]} 35. Nxf6 {[%clk 0:00:06]}  Rxg1+ {[%clk 0:00:03]} 36. Rxg1 {[%clk 0:00:07]}  Qxf6 {[%clk 0:00:02]} 37. Qxf6# {[%clk 0:00:08]} 1-0


[Site "https://www.chess.com"]